bitfinex/quotes_ETHUSD_20251107
["timestamp","ask_amount","ask_price","bid_price","bid_amount"]
[1762473833837,1.1353,3327.5,3326.8,3.00589154]
[1762473833838,1.1353,3327.5,3327.4,3.00534952]
[1762473834212,1.1353,3327.5,3327.3,3.0054056]
[1762473834415,1.1353,3327.5,3327.4,3.00534952]
[1762473834835,1.1353,3327.5,3327.3,3.0054009]
[1762473835035,1.1353,3327.5,3327.4,3.00534952]
[1762473835911,1.1353,3327.5,3326.8,0.4932]
[1762473836245,1.1353,3327.5,3327.2,3.00547131]
[1762473836415,1.1353,3327.5,3326.5,0.4932]
[1762473836618,1.1353,3327.5,3327.0,3.00563891]
[1762473836939,1.1353,3327.5,3326.5,3.00616263]
[1762473837145,0.72,3327.5,3327.0,3.00565105]
[1762473837317,3.00550313,3327.3,3326.5,3.00614815]
[1762473837517,0.53,3326.6,3326.1,0.001]
[1762473837833,0.4153,3326.2,3326.1,3.00752415]
[1762473838034,0.719,3326.6,3326.5,3.00616263]
[1762473838443,1.1343,3326.6,3326.1,3.00749033]
[1762473838748,0.4153,3326.2,3326.1,3.00749033]
[1762473839110,0.719,3326.6,3326.5,3.00616263]
[1762473839312,0.719,3326.6,3326.1,0.001]
[1762473839512,0.4153,3326.4,3326.3,3.00634338]
[1762473839962,0.1147,3326.9,3326.5,3.00608307]
[1762473840159,0.8337,3326.8,3326.7,3.00590568]
[1762473840322,0.8337,3326.8,3326.4,3.00617586]
[1762473840524,0.8337,3326.8,3326.5,3.00613521]
[1762473840717,0.8337,3326.8,3326.7,3.0059819]
[1762473840913,0.719,3326.8,3326.7,3.0059819]
[1762473841151,0.8524,3326.8,3326.7,3.0059819]
[1762473841716,0.8524,3326.8,3326.1,0.001]
[1762473841947,0.1293,3326.2,3326.1,3.00748483]
[1762473842264,0.72,3326.3,3326.2,3.00643376]
[1762473842612,0.1147,3326.9,3326.8,3.00589154]
[1762473842859,0.1147,3326.9,3326.1,0.001]
[1762473842860,0.4153,3326.8,3326.1,0.001]
[1762473843016,0.4153,3326.8,3326.4,3.00618482]
[1762473843215,0.4153,3326.8,3326.1,0.001]
[1762473843617,0.1496,3326.4,3326.3,3.00634338]
[1762473843914,0.8696,3326.4,3326.3,3.00634338]
[1762473845166,0.8534,3326.4,3326.1,0.001]
[1762473845460,0.1321,3326.2,3326.1,0.001]
[1762473845758,0.72,3326.4,3326.1,0.001]
[1762473845971,0.72,3326.4,3326.2,3.00643376]
[1762473846133,0.1349,3326.2,3326.1,0.001]
[1762473846336,1.394612,3326.2,3324.7,3.00779017]
[1762473846664,3.0069419,3325.7,3324.8,3.00764762]
[1762473846815,3.0070726,3325.5,3324.4,0.6909]
[1762473847017,0.72,3325.6,3323.9,0.4932]
[1762473847018,4.14228084,3325.6,3323.9,0.4932]
[1762473847267,3.00722425,3325.4,3324.6,3.00782657]
[1762473847423,3.00721008,3325.4,3324.0,3.69929099]
[1762473847749,0.1147,3325.8,3325.2,3.0073275]
[1762473847955,2.395012,3325.7,3324.9,3.00754211]
[1762473848151,3.00718419,3325.4,3324.1,3.94342255]
[1762473848315,3.00719418,3325.4,3324.6,3.00783603]
[1762473848515,0.4153,3325.3,3324.8,3.00764673]
[1762473848850,0.72,3325.2,3325.1,3.00742834]
[1762473849036,0.72,3325.2,3324.5,0.4932]
[1762473849246,0.72,3325.2,3325.1,3.00742834]
[1762473849555,0.666,3325.4,3325.3,3.00724746]
[1762473849740,0.1147,3325.8,3325.6,3.00696335]
[1762473850051,0.72,3325.7,3325.2,3.0073177]
[1762473850351,0.72,3325.7,3325.5,3.00701348]
[1762473850585,0.72,3325.7,3325.3,3.00720773]
[1762473850784,0.1334,3325.4,3325.0,3.00746447]
[1762473850986,0.0041,3325.2,3325.1,3.00742777]
[1762473851186,0.7241,3325.2,3324.5,3.00797112]
[1762473851492,0.7241,3325.2,3325.1,3.00742834]
[1762473851493,0.72,3325.2,3325.1,3.00742834]
[1762473852151,1.1353,3325.2,3325.1,3.00742834]
[1762473852353,1.1353,3325.2,3324.2,3.00819281]
[1762473852354,1.2687,3325.2,3324.1,0.9045291]
[1762473852579,0.0013,3325.0,3324.6,3.00784771]
[1762473852752,0.0013,3325.0,3324.9,3.00760925]
[1762473853153,0.72,3325.2,3324.3,0.4626]
[1762473853470,0.4153,3325.4,3324.9,3.00760497]
[1762473853653,0.4153,3325.4,3321.4,1.809]
[1762473853654,0.72,3325.3,3323.2,0.1996]
[1762473853985,0.72,3325.3,3323.3,0.03009057]
[1762473853986,0.405504,3325.1,3323.3,0.03009057]
[1762473854185,3.00778672,3324.8,3323.2,0.1996]
[1762473854482,3.00778672,3324.8,3323.5,3.00882106]
[1762473854683,3.00778672,3324.8,3322.9,3.19128149]
[1762473854684,1.259712,3324.6,3323.3,3.00898401]
[1762473854885,0.721,3324.5,3323.3,3.00897932]
[1762473855089,3.00839999,3324.1,3323.4,3.00895317]
[1762473855586,3.00839999,3324.1,3322.9,0.1819]
[1762473855587,0.2261,3323.5,3322.9,0.1819]
[1762473855786,0.8714,3323.4,3322.9,0.1829]
[1762473855952,0.8714,3323.4,3323.3,3.00905726]
[1762473857156,0.72,3324.0,3323.3,3.98624783]
[1762473857355,0.0932,3324.4,3323.7,0.4845]
[1762473857688,0.0932,3324.4,3324.3,3.00815209]
[1762473857890,0.8142,3324.4,3323.7,0.4845]
[1762473858129,0.1504,3324.0,3323.8,3.00858916]
[1762473858414,0.1504,3324.0,3323.6,0.4626]
[1762473858583,0.1504,3324.0,3323.9,3.00851409]
[1762473859603,0.8142,3324.4,3324.3,3.00815209]
[1762473859777,0.8142,3324.4,3324.2,3.00821501]
[1762473859984,0.1504,3324.2,3324.1,3.00830245]
[1762473860778,0.2838,3324.2,3323.6,3.62176897]
[1762473860990,0.1334,3324.2,3323.8,3.00852043]
[1762473861213,0.1504,3323.9,3323.8,3.00852043]
[1762473861515,0.1504,3323.9,3323.8,3.0086046]
[1762473861883,0.8142,3324.4,3324.1,3.00827026]
[1762473862081,0.8142,3324.4,3324.1,3.00826858]
[1762473863618,0.8142,3324.4,3324.2,3.00820369]
[1762473863918,1.259712,3324.9,3324.4,3.0080616]
[1762473864119,0.72,3324.8,3324.1,0.1996]
[1762473864317,0.4153,3324.5,3323.7,0.4626]
[1762473864619,0.4153,3324.5,3324.1,3.00827643]
[1762473864916,0.4153,3324.5,3323.9,3.00844527]
[1762473865119,0.4153,3324.5,3323.7,0.4626]
[1762473865327,3.00869512,3323.7,3322.9,0.1829]
[1762473865661,3.41642891,3323.0,3322.9,0.001]
[1762473865826,1.1281,3323.0,3322.9,0.001]
[1762473866164,1.2696,3323.0,3322.9,0.001]
[1762473867542,4.27892891,3323.0,3322.9,0.001]
[1762473867714,1.2696,3323.0,3322.9,0.001]
[1762473868528,4.27892891,3323.0,3322.9,0.001]
[1762473868947,1.2696,3323.0,3322.9,0.001]
[1762473871054,4.27892891,3323.0,3322.9,0.001]
[1762473871553,1.2696,3323.0,3322.9,0.001]
[1762473871934,3.01014418,3322.1,3321.8,0.1504]
[1762473872255,3.01014418,3322.1,3321.3,0.001]
[1762473872256,3.01070944,3321.5,3321.3,0.001]
[1762473872462,3.73537858,3321.4,3321.3,0.001]
[1762473872756,0.7246,3321.4,3321.3,0.001]
[1762473873352,3.73537858,3321.4,3321.3,0.001]
[1762473873581,0.7246,3321.4,3321.3,0.001]
[1762473874156,0.7256,3321.4,3321.3,0.001]
[1762473874899,1.441212,3322.2,3321.5,3.01064374]
[1762473875201,0.724,3322.1,3321.6,3.01058829]
[1762473875395,0.724,3322.1,3321.3,0.001]
[1762473875396,1.259712,3321.9,3321.3,0.001]
[1762473875567,2.482812,3322.1,3321.4,3.01071119]
[1762473875901,2.482812,3322.1,3321.3,0.001]
[1762473875902,1.2231,3322.1,3321.3,0.001]
[1762473876190,1.259712,3322.0,3321.3,0.001]
[1762473876387,4.23330979,3322.1,3321.5,3.01060198]
[1762473876388,1.2231,3322.1,3321.5,3.01060198]
[1762473876590,0.1842,3322.7,3322.0,0.4845]
[1762473876990,0.584,3322.6,3322.3,3.00995631]
[1762473877190,0.584,3322.6,3322.2,3.01001745]
[1762473877392,4.09282002,3322.6,3321.7,3.0104908]
[1762473877592,1.0831,3322.6,3322.0,3.01015557]
[1762473877759,1.0831,3322.6,3322.1,3.01013657]
[1762473877954,1.0831,3322.6,3322.2,3.01005234]
[1762473878278,0.584,3322.6,3322.2,3.01005234]
[1762473878483,0.584,3322.6,3321.8,0.4615]
[1762473878652,0.584,3322.6,3321.9,3.0102518]
[1762473878857,0.584,3322.6,3322.3,3.00995655]
[1762473879056,0.7867912,3322.6,3322.3,3.00995655]
[1762473879483,0.7867912,3322.6,3322.3,3.00988624]
[1762473879680,0.584,3322.6,3322.3,3.00988624]
[1762473880480,0.584,3322.6,3322.4,3.00987101]
[1762473881096,0.584,3322.6,3322.3,3.0099343]
[1762473881306,0.584,3322.6,3322.4,3.00985941]
[1762473881509,0.723,3322.5,3322.3,3.00996297]
[1762473881793,0.723,3322.4,3322.3,3.00996297]
[1762473881994,0.193,3322.9,3322.6,3.00968415]
[1762473882196,0.193,3322.9,3322.2,0.4813]
[1762473882197,0.723,3322.8,3322.5,3.00975352]
[1762473882394,0.723,3322.8,3322.3,3.48804706]
[1762473882594,0.1105,3322.4,3321.8,3.01033379]
[1762473882794,0.1504,3322.2,3322.1,3.01014418]
[1762473883269,0.1504,3322.2,3322.1,4.16624418]
[1762473883787,0.1504,3322.2,3322.1,3.68494418]
[1762473883975,0.1504,3322.2,3322.1,0.6748]
[1762473884175,0.2609,3322.2,3321.6,0.1504]
[1762473884507,0.1504,3322.2,3322.1,3.01014418]
[1762473884705,0.1504,3322.2,3321.7,0.4813]
[1762473884912,0.1504,3322.2,3321.9,3.0103075]
[1762473885076,0.1504,3322.2,3321.7,0.4813]
[1762473885281,0.1504,3322.2,3322.1,3.01014418]
[1762473886102,0.1504,3322.2,3322.0,3.01022378]
[1762473886279,0.1504,3322.2,3322.1,3.01014418]
[1762473886481,0.1504,3322.2,3322.1,3.48824418]
[1762473886896,0.1504,3322.2,3322.1,0.4781]
[1762473887094,0.1504,3322.2,3322.0,3.01015961]
[1762473887272,0.1504,3322.2,3322.1,3.01014418]
[1762473888420,0.1504,3322.2,3321.9,3.49161618]
[1762473888630,0.0045,3322.0,3321.6,0.1504]
[1762473888786,0.0045,3322.0,3321.4,0.4813]
[1762473888989,0.723,3322.3,3321.9,3.01025508]
[1762473889187,0.723,3322.3,3321.9,3.01026911]
[1762473889825,1.173,3322.3,3321.7,3.01048256]
[1762473890189,1.173,3322.3,3321.8,3.01041603]
[1762473890619,1.173,3322.3,3321.6,3.01059344]
[1762473890810,1.173,3322.3,3321.9,3.01027726]
[1762473891686,1.173,3322.3,3321.6,0.001]
[1762473892006,0.721,3322.2,3321.7,0.4813]
[1762473892201,0.721,3322.1,3322.0,3.01023479]
[1762473893223,1.261712,3322.6,3322.3,3.00988651]
[1762473893421,0.721,3322.5,3322.3,3.0098879]
[1762473893627,0.721,3322.5,3322.4,3.00987238]
[1762473894147,0.721,3322.5,3322.4,3.48797238]
[1762473894297,1.261712,3322.6,3322.5,3.00978179]
[1762473894493,0.002,3322.6,3322.5,3.48788179]
[1762473894709,0.002,3322.6,3322.5,3.96918179]
[1762473895908,0.002,3322.6,3322.5,4.97109297]
[1762473896110,0.002,3322.6,3322.5,5.69109297]
[1762473897742,0.002,3323.0,3322.5,5.69109297]
[1762473897743,1e-08,3323.0,3322.9,3.48751948]
[1762473898034,1e-08,3323.0,3322.9,4.20851948]
[1762473898235,1e-08,3323.0,3322.9,4.68981948]
[1762473898533,1e-08,3323.0,3322.9,5.48984724]
[1762473898735,1e-08,3323.0,3322.9,5.64024724]
[1762473899032,1e-08,3323.0,3322.9,6.71946505]
[1762473900336,1e-08,3323.0,3322.9,7.12496905]
[1762473904870,1e-08,3323.0,3322.9,4.73875305]
[1762473905165,1e-08,3323.0,3322.9,6.74855924]
[1762473905329,1e-08,3323.0,3322.9,7.12396905]
[1762473905758,0.16,3325.1,3325.0,3.00751879]
[1762473906066,0.45,3325.5,3325.4,3.00715703]
[1762473906215,0.099,3325.5,3325.2,3.00725679]
[1762473906412,0.0045,3325.1,3325.0,3.00751879]
[1762473906962,0.45,3325.5,3325.3,3.00723269]
[1762473907359,0.45,3325.5,3325.4,3.00715703]
[1762473907552,0.1158,3326.0,3325.8,3.00678264]
[1762473907759,0.45,3325.9,3325.8,3.00670892]
[1762473908056,0.549,3325.9,3325.3,3.00724746]
[1762473908276,0.001,3325.7,3325.6,3.00697618]
[1762473908607,0.001,3325.7,3325.6,3.03704594]
[1762473909012,0.001,3325.7,3325.5,3.00703291]
[1762473909216,0.45,3325.7,3325.5,3.00706632]
[1762473909502,0.099,3325.6,3324.5,0.72]
[1762473909656,0.001,3325.4,3324.8,0.1496]
[1762473909857,0.2822,3324.9,3324.5,0.1496]
[1762473910078,0.1496,3324.8,3324.2,0.1504]
[1762473910307,0.1496,3324.8,3324.6,3.00787829]
[1762473910454,0.1496,3324.8,3324.3,3.00815209]
[1762473910660,0.0588,3324.3,3324.0,0.721]
[1762473910972,0.1842,3324.9,3324.4,3.0080616]
[1762473910973,0.4906,3324.5,3324.4,3.0080616]
[1762473911372,0.5494,3324.5,3324.4,3.0080616]
[1762473911572,0.5494,3324.5,3324.1,3.00831802]
[1762473911871,0.1496,3324.6,3324.5,3.46887112]
[1762473912071,0.002,3326.1,3325.4,3.00715703]
[1762473912261,0.0588,3324.6,3323.5,0.4955]
[1762473912461,0.2417,3324.6,3324.5,3.00797112]
[1762473912971,0.7292,3324.6,3324.5,3.00797112]
[1762473913294,0.7292,3324.6,3324.4,3.00804512]
[1762473913493,0.7292,3324.6,3324.3,3.00815209]
[1762473913494,0.0049,3324.4,3324.3,3.00815209]
[1762473913812,0.1842,3324.9,3324.6,3.00782942]
[1762473914105,0.6748,3324.9,3324.6,3.00782942]
[1762473914290,0.0588,3324.7,3323.3,0.4955]
[1762473914460,0.4906,3324.8,3323.4,0.724]
[1762473914661,0.4906,3324.7,3324.6,3.00788064]
[1762473914860,0.5494,3324.7,3323.8,3.0086046]
[1762473915168,0.5494,3324.7,3324.4,3.00804603]
[1762473915371,0.5494,3324.7,3324.6,3.00788064]
[1762473915806,0.0588,3324.7,3324.6,3.00788064]
[1762473916095,0.0588,3324.7,3324.1,0.1887]
[1762473916278,0.0588,3324.7,3324.6,3.00788064]
[1762473916597,0.1842,3324.9,3324.8,3.00769971]
[1762473917191,0.4906,3325.3,3325.2,3.0073379]
[1762473917369,0.243,3324.9,3324.8,3.00769971]
[1762473917766,0.719,3325.5,3325.3,3.00724487]
[1762473917960,0.719,3325.5,3325.4,3.00715703]
[1762473918431,0.7778,3325.5,3325.4,3.00715703]
[1762473918926,1.2641,3325.5,3324.6,0.724]
[1762473919110,0.0049,3325.3,3325.1,3.00736419]
[1762473919310,0.0049,3325.3,3325.2,3.0073379]
[1762473919715,0.4955,3325.3,3323.5,3.41436999]
[1762473920025,0.054,3325.1,3323.5,0.4955]
[1762473920183,0.054,3325.1,3323.0,3.20698539]
[1762473920184,0.054,3325.1,3324.6,3.00782057]
[1762473920384,0.1896,3324.7,3324.6,3.00782057]
[1762473920741,0.1842,3324.7,3324.6,3.00782057]
[1762473921035,0.243,3324.7,3324.6,4.26753257]
[1762473922164,0.3926,3324.7,3324.6,4.26753257]
[1762473922292,0.1496,3324.7,3324.6,4.26753257]
[1762473922490,0.4906,3325.4,3325.2,3.00730265]
[1762473922692,0.4906,3325.4,3324.2,1.259712]
[1762473923001,0.719,3325.5,3324.4,3.0080616]
[1762473923185,0.719,3325.5,3325.2,3.00726959]
[1762473923385,0.719,3325.5,3325.1,3.00737373]
[1762473923637,1.2096,3325.5,3324.5,0.725]
[1762473923837,1.2096,3325.5,3325.4,3.00715703]
[1762473924305,1.2684,3325.5,3325.4,3.00715703]
[1762473925126,0.7778,3325.5,3325.4,3.00715703]
[1762473927028,0.002,3325.5,3325.4,3.00715703]
[1762473928834,0.5472,3325.5,3325.2,3.00725148]
[1762473929034,0.0048,3325.3,3325.2,3.00725148]
[1762473931133,0.002,3325.5,3325.4,3.00715703]
[1762473933717,0.002,3325.5,3325.4,4.68755703]
[1762473936046,0.002,3325.5,3325.4,4.83715703]
[1762473936917,0.002,3325.5,3325.4,4.8672286]
[1762473937942,1e-08,3325.9,3325.8,3.45899535]
[1762473938145,1e-08,3325.9,3325.8,5.35765192]
[1762473938532,1e-08,3325.9,3325.8,6.61736392]
[1762473938742,1e-08,3325.9,3325.8,6.99279997]
[1762473943032,1e-08,3325.9,3325.8,6.26979997]
[1762473943230,1e-08,3325.9,3325.8,6.99179997]
[1762473946644,1e-08,3325.9,3325.8,7.58125331]
[1762473947763,0.647,3328.2,3328.1,3.0047174]
[1762473947976,0.7966,3328.2,3328.1,3.0047174]
[1762473948158,0.8944,3328.2,3328.1,3.0047174]
[1762473951038,0.4316,3328.2,3328.1,3.0047174]
[1762473952638,0.8907,3328.2,3328.1,3.0047174]
[1762473953039,0.8907,3328.2,3326.2,3.00643376]
[1762473953237,3.00502065,3327.8,3327.2,3.00552917]
[1762473953469,0.2747,3327.3,3327.2,3.00552917]
[1762473953671,0.2747,3327.3,3326.7,0.1496]
[1762473953872,0.2019,3326.8,3326.7,3.0059819]
[1762473954254,0.6611,3326.8,3326.1,3.00652415]
[1762473954561,0.5687,3326.8,3326.3,3.006261]
[1762473954762,0.4628,3326.7,3325.2,0.6834]
[1762473954962,0.1221,3325.9,3325.8,3.00679535]
[1762473955341,0.2085,3325.9,3325.8,3.00679535]
[1762473955867,0.0864,3325.9,3325.8,3.00679535]
[1762473956174,0.5723,3326.8,3326.7,3.0059819]
[1762473956774,0.6587,3326.8,3326.7,3.0059819]
[1762473958154,0.6587,3326.8,3326.0,0.721]
[1762473958467,0.4628,3326.7,3326.6,3.00607226]
[1762473958860,0.5492,3326.7,3326.6,3.00607226]
[1762473960251,0.5492,3326.7,3325.2,0.1934]
[1762473960452,0.2076,3325.3,3324.4,3.0079926]
[1762473960651,0.1221,3325.3,3325.2,3.0073379]
[1762473960886,0.1095,3326.8,3325.7,3.006802]
[1762473961195,0.1095,3326.8,3326.0,3.00659496]
[1762473961196,0.4628,3326.7,3326.0,3.00659496]
[1762473961399,3.00626023,3326.4,3325.6,3.00697248]
[1762473961565,0.2072,3325.7,3325.6,3.00697618]
[1762473962393,1.2933,3326.8,3325.7,3.00688576]
[1762473962694,1.2933,3326.8,3325.6,0.721]
[1762473962695,0.4628,3326.7,3325.6,0.721]
[1762473962890,0.4628,3326.7,3326.6,3.00607226]
[1762473963283,0.5492,3326.7,3326.6,3.00607226]
[1762473964396,0.6404,3327.3,3326.6,3.00607226]
[1762473964557,0.4807,3326.7,3326.6,3.00607226]
[1762473964893,0.1496,3326.8,3326.7,3.0059819]
[1762473965303,0.519,3326.8,3326.7,3.0059819]
[1762473966095,0.1496,3326.8,3326.7,3.03604171]
[1762473966308,0.1814,3327.3,3327.2,3.00553017]
[1762473966662,0.2678,3327.3,3327.2,3.00553017]
[1762473966873,0.331,3327.6,3327.5,3.0052592]
[1762473967194,0.1496,3327.6,3327.5,3.0052592]
[1762473967668,0.1496,3327.6,3327.5,4.07592609]
[1762473967874,0.9072,3328.2,3328.1,3.0047174]
[1762473968271,0.1496,3328.1,3328.0,3.00476258]
[1762473968473,0.1496,3328.1,3327.5,1.211]
[1762473968812,0.236,3328.1,3328.0,3.00480769]
[1762473969157,0.236,3328.1,3327.5,1.211]
[1762473969365,0.236,3328.1,3328.0,3.00480769]
[1762473970570,0.1496,3328.1,3328.0,3.00480769]
[1762473971764,0.236,3328.1,3327.5,1.211]
[1762473971966,0.236,3328.1,3328.0,3.00480769]
[1762473972179,0.1496,3328.1,3328.0,3.00480769]
[1762473972497,0.9072,3328.2,3328.0,3.00480769]
[1762473972498,0.002,3328.2,3328.1,3.0047174]
[1762473972696,0.002,3328.2,3328.1,4.19376457]
[1762473973059,0.4975,3328.2,3327.6,0.38257962]
[1762473973300,0.4975,3328.2,3327.6,0.43110773]
[1762473973507,0.4975,3328.2,3327.9,3.00487207]
[1762473973799,0.4975,3328.2,3328.0,3.00478902]
[1762473974008,0.4975,3328.2,3328.1,3.0047174]
[1762473974308,0.0571,3327.9,3327.8,3.00498828]
[1762473974621,0.1095,3330.2,3328.2,0.405504]
[1762473974900,0.5828,3330.2,3328.9,0.4781]
[1762473975103,0.5828,3330.2,3329.0,3.72990507]
[1762473975308,0.5828,3330.2,3329.8,3.00309515]
[1762473975664,0.2558,3329.9,3329.8,3.00309515]
[1762473975964,0.2558,3329.9,3329.1,1.14680051]
[1762473976165,0.0018,3329.7,3329.6,3.00333251]
[1762473976589,0.4751,3329.7,3329.5,3.00342812]
[1762473976775,0.4733,3329.7,3329.5,3.00342812]
[1762473976994,0.0769,3329.6,3329.5,3.00342812]
[1762473977416,0.0769,3329.6,3328.1,4.45870033]
[1762473977722,0.0769,3329.6,3328.3,3.00446152]
[1762473977880,0.0769,3329.6,3329.4,3.00352503]
[1762473978079,0.0769,3329.6,3328.8,0.726]
[1762473978308,0.0769,3329.6,3329.4,3.00354333]
[1762473978542,0.0769,3329.6,3328.8,0.726]
[1762473978705,0.0769,3329.6,3328.8,1.1476703]
[1762473978901,0.0769,3329.6,3329.4,3.00353548]
[1762473979182,0.0769,3329.5,3329.3,3.00361523]
[1762473979509,0.0769,3329.4,3329.3,3.00361523]
[1762473979716,0.4733,3329.7,3329.5,3.0033984]
[1762473980175,0.0769,3329.6,3328.8,1.1466703]
[1762473980381,0.0769,3329.6,3328.9,3.16728667]
[1762473980991,0.0769,3329.6,3329.5,3.00345397]
[1762473981879,0.1799,3329.9,3329.8,3.00318337]
[1762473982359,0.002,3329.6,3328.8,3.91232391]
[1762473982653,0.1516,3329.6,3329.5,3.00345397]
[1762473982954,0.002,3329.6,3329.5,3.00345397]
[1762473986300,0.002,3329.6,3329.5,3.5115885]
[1762473986463,0.002,3329.6,3329.5,3.9981885]
[1762473986782,0.002,3329.6,3329.5,3.96815397]
[1762473987086,0.002,3329.6,3329.5,5.05293898]
[1762473987257,0.002,3329.6,3329.5,5.08297351]
[1762473987659,0.002,3329.6,3329.5,5.05293898]
[1762473992361,0.002,3329.6,3329.5,5.08297351]
[1762473992555,0.002,3329.6,3329.5,5.20253898]
[1762473993080,0.0516,3330.5,3330.4,3.00264232]
[1762473993291,0.4733,3330.7,3329.9,0.722]
[1762473993500,0.4733,3330.7,3330.4,3.00262228]
[1762473993690,0.4733,3330.7,3330.6,3.00246201]
[1762473994204,0.5492,3330.7,3330.4,3.00262228]
[1762473994402,0.4733,3330.7,3330.4,3.00258259]
[1762473994575,0.0759,3330.5,3330.4,3.00264232]
[1762473994798,0.0759,3330.5,3329.0,0.89416509]
[1762473994990,0.0759,3329.1,3328.7,3.00414316]
[1762473995189,0.4751,3329.0,3327.7,0.4866]
[1762473995387,0.4751,3329.0,3327.6,3.00516889]
[1762473995388,0.0752,3328.8,3327.6,3.00516889]
[1762473995616,0.0752,3328.8,3327.7,0.723]
[1762473995919,0.4701,3328.7,3328.1,3.00470382]
[1762473996209,3.00450449,3328.4,3327.0,0.1943]
[1762473996512,0.4733,3328.3,3327.2,0.723]
[1762473997084,0.0759,3327.3,3327.2,3.00553017]
[1762473997406,0.0759,3327.3,3326.2,0.4866]
[1762473997607,0.4556,3327.2,3326.8,3.00585682]
[1762473997811,0.4556,3327.2,3326.7,3.00591006]
[1762473998308,0.2117,3326.8,3326.4,3.00617356]
[1762473998456,0.0023,3326.6,3326.0,3.00661455]
[1762473998655,0.0023,3326.6,3326.0,3.30737601]
[1762473998899,0.0023,3326.6,3326.0,0.30076146]
[1762473999089,0.0023,3326.6,3326.5,3.00616263]
[1762473999365,0.4556,3326.5,3326.3,3.00627888]
[1762473999563,0.4556,3326.5,3326.4,3.006253]
[1762473999777,0.1172,3326.8,3326.0,0.30076146]
[1762473999980,0.1172,3326.8,3325.9,0.001]
[1762474000180,0.0959,3326.0,3325.9,3.00769384]
[1762474000396,0.4556,3326.7,3325.9,0.001]
[1762474000661,3.46163594,3326.7,3326.1,0.001]
[1762474000887,0.4556,3326.7,3326.1,0.001]
[1762474001098,0.0959,3326.2,3326.1,3.00752415]
[1762474002196,0.0959,3326.2,3326.1,0.001]
[1762474002402,0.0959,3326.2,3326.1,3.00752415]
[1762474003377,0.1496,3326.2,3326.1,3.00752415]
[1762474003577,0.2502,3326.2,3326.1,3.00752415]
[1762474003812,0.1496,3326.2,3326.1,3.00752415]
[1762474005386,0.1496,3326.2,3326.1,4.71765324]
[1762474005593,0.1496,3326.2,3326.1,3.61205324]
[1762474005989,0.1496,3326.2,3326.1,4.08425324]
[1762474006192,0.4508,3327.5,3327.2,3.00551355]
[1762474006418,0.4508,3327.5,3326.7,3.4781812]
[1762474006631,0.4508,3327.5,3327.2,3.0054741]
[1762474006780,0.4508,3327.5,3326.2,0.4521]
[1762474006986,0.4508,3327.5,3326.5,0.722]
[1762474007522,0.4508,3327.5,3326.6,0.48216072]
[1762474007704,0.1172,3328.0,3327.4,0.4722]
[1762474007883,0.1172,3328.0,3327.8,3.00490228]
[1762474008085,0.0982,3327.9,3327.8,3.00490228]
[1762474008480,0.1804,3328.2,3327.9,3.00489798]
[1762474008788,0.1804,3328.2,3328.1,3.0047174]
[1762474009195,0.2786,3328.2,3328.1,3.0047174]
[1762474010002,0.2786,3328.2,3327.4,0.4521]
[1762474010195,0.2786,3328.2,3328.1,3.0047174]
[1762474011216,0.6312,3328.5,3328.4,3.00444658]
[1762474011420,0.6312,3328.5,3327.7,0.722]
[1762474011597,0.6312,3328.5,3328.4,3.00444658]
[1762474011781,0.6312,3328.5,3327.8,3.00491545]
[1762474011985,0.6312,3328.5,3327.6,0.4521]
[1762474011986,0.1182,3327.9,3327.6,3.00513471]
[1762474012238,0.1172,3327.9,3327.8,3.00498828]
[1762474012409,0.1172,3327.9,3327.3,0.722]
[1762474012609,0.568,3327.9,3327.6,3.00508402]
[1762474012917,0.0982,3327.7,3327.6,3.00516889]
[1762474013097,0.1172,3327.9,3327.8,3.00498828]
[1762474013620,0.2154,3327.9,3327.8,3.00498828]
[1762474015022,0.1804,3328.5,3327.8,3.00498828]
[1762474015023,0.1804,3328.5,3328.4,3.00444658]
[1762474015224,0.1799,3329.1,3328.8,3.00408555]
[1762474015387,0.1799,3329.1,3328.2,0.1813]
[1762474015388,0.9019,3329.4,3329.2,3.00370477]
[1762474015584,0.9019,3329.4,3328.6,3.47643711]
[1762474015585,0.9019,3329.4,3329.3,3.00363439]
[1762474015821,0.9019,3329.4,3328.9,3.00391965]
[1762474015984,0.4508,3329.3,3328.8,3.00408555]
[1762474016190,0.1496,3329.1,3329.0,3.00390507]
[1762474016616,0.2478,3329.1,3329.0,3.00390507]
[1762474017402,0.2478,3329.1,3328.5,3.87591745]
[1762474017403,0.2478,3329.1,3328.7,3.00413544]
[1762474017602,0.2478,3329.1,3328.5,0.8716]
[1762474017821,0.2478,3329.1,3328.5,1.25920908]
[1762474018025,0.2478,3329.1,3329.0,3.00390507]
[1762474018719,0.1496,3329.1,3329.0,3.00390507]
[1762474018918,0.2513,3329.1,3329.0,3.00390507]
[1762474019222,0.1496,3329.1,3329.0,3.00390507]
[1762474019592,0.2513,3329.1,3329.0,3.00390507]
[1762474019923,0.1496,3329.1,3329.0,3.00390507]
[1762474020099,0.1496,3329.1,3328.8,3.00400141]
[1762474020422,0.9019,3329.4,3328.6,3.00421535]
[1762474020423,0.2821,3328.9,3328.6,3.00421535]
[1762474020605,0.154,3328.7,3328.6,3.00421535]
[1762474021129,0.1496,3328.7,3328.3,3.00450184]
[1762474021324,0.2478,3328.7,3328.1,0.8706]
[1762474021627,0.2478,3328.7,3328.6,3.00426605]
[1762474021929,0.0045,3328.2,3328.0,3.00475412]
[1762474022096,0.0973,3328.1,3328.0,3.00480769]
[1762474022794,0.1496,3328.2,3328.1,3.0047174]
[1762474023324,0.2478,3328.2,3328.1,3.0047174]
[1762474023902,0.6951,3328.2,3327.6,0.1496]
[1762474024100,0.6951,3328.2,3327.9,3.0048837]
[1762474024101,0.4473,3328.2,3327.9,3.0048837]
[1762474024313,0.2513,3328.0,3327.9,3.0048837]
[1762474024516,1.259712,3329.2,3327.9,3.0048837]